fUSD/lending_fUSD_20250414
["ID","MTS","AMOUNT","RATE_DAILY","PERIOD"]
[357936080,1744601443246,-520.44644082,0.00019178,2]
[357936082,1744601443255,-500.0,0.00019178,2]
[357936084,1744601443265,-582.1,0.00019178,2]
[357936086,1744601443274,-284.743014,0.00019178,2]
[357936088,1744601443284,-500.0,0.00019178,2]
[357936089,1744601443293,-508.86818899,0.00019178,2]
[357936090,1744601443303,-500.0,0.00019178,2]
[357936091,1744601443314,-503.65478699,0.00019178,2]
[357936092,1744601443324,-500.0,0.00019178,2]
[357936093,1744601443333,-500.0,0.00019178,2]
[357936094,1744601443343,-151.0,0.00019178,2]
[357936095,1744601443353,-500.0,0.00019178,2]
[357936097,1744601443363,-500.0,0.00019178,2]
[357936099,1744601443372,-500.0,0.00019178,2]
[357936101,1744601443382,-500.0,0.00019178,2]
[357936103,1744601443392,-500.0,0.00019178,2]
[357936105,1744601443402,-501.10627065,0.00019178,2]
[357936107,1744601443412,-500.0,0.00019178,2]
[357936109,1744601443422,-500.0,0.00019178,2]
[357936111,1744601443431,-502.43598196,0.00019178,2]
[357936113,1744601443441,-500.0,0.00019178,2]
[357936115,1744601443450,-592.02695205,0.00019178,2]
[357936117,1744601443459,-500.0,0.00019178,2]
[357936120,1744601443469,-515.65030817,0.00019178,2]
[357936122,1744601443478,-500.0,0.00019178,2]
[357936124,1744601443488,-515.98720866,0.00019178,2]
[357936126,1744601443497,-500.0,0.00019178,2]
[357936128,1744601443507,-332.85788658,0.00019178,2]
[357936130,1744601443517,-500.0,0.00019178,2]
[357936131,1744601443527,-213.58614922,0.00019178,2]
[357936133,1744601443537,-513.9460816,0.00019178,2]
[357936135,1744601443546,-2006.29983534,0.00019178,2]
[357936137,1744601443556,-500.0,0.00019178,2]
[357936139,1744601443566,-525.96964503,0.00019178,2]
[357936141,1744601443576,-514.75720056,0.00019178,2]
[357936143,1744601443586,-500.0,0.00019178,2]
[357936145,1744601443595,-570.55,0.00019178,2]
[357936147,1744601443606,-500.0,0.00019178,2]
[357936149,1744601443615,-500.0,0.00019178,2]
[357936150,1744601443625,-500.0,0.00019178,2]
[357936152,1744601443634,-500.0,0.00019178,2]
[357936154,1744601443643,-504.91406561,0.00019178,2]
[357936156,1744601443653,-504.12333985,0.00019178,2]
[357936158,1744601443663,-500.0,0.00019178,2]
[357936160,1744601443672,-500.0,0.00019178,2]
[357936162,1744601443681,-500.0,0.00019178,2]
[357936164,1744601443691,-500.0,0.00019178,2]
[357936166,1744601443700,-500.0,0.00019178,2]
[357936168,1744601443709,-500.0,0.00019178,2]
[357936170,1744601443719,-500.0,0.00019178,2]
[357936171,1744601443729,-500.0,0.00019178,2]
[357936172,1744601443738,-500.0,0.00019178,2]
[357936173,1744601443747,-151.0,0.00019178,2]
[357936174,1744601443757,-555.32,0.00019178,2]
[357936175,1744601443766,-500.0,0.00019178,2]
[357936176,1744601443776,-508.8010617,0.00019178,2]
[357936177,1744601443787,-500.0,0.00019178,2]
[357936178,1744601443797,-500.0,0.00019178,2]
[357936179,1744601443807,-504.92176732,0.00019178,2]
[357936180,1744601443818,-500.0,0.00019178,2]
[357936181,1744601443828,-524.61717776,0.00019178,2]
[357936182,1744601443837,-507.35867151,0.00019178,2]
[357936183,1744601443847,-500.0,0.00019178,2]
[357936184,1744601443858,-500.0,0.00019178,2]
[357936185,1744601443873,-587.42,0.00019178,2]
[357936186,1744601443887,-500.0,0.00019178,2]
[357936187,1744601443898,-500.0,0.00019178,2]
[357936188,1744601443908,-500.0,0.00019178,2]
[357936189,1744601443919,-500.0,0.00019178,2]
[357936190,1744601443930,-507.09781207,0.00019178,2]
[357936191,1744601443941,-508.11322402,0.00019178,2]
[357936192,1744601443951,-500.0,0.00019178,2]
[357936193,1744601443962,-523.1149443,0.00019178,2]
[357936194,1744601443971,-500.0,0.00019178,2]
[357936195,1744601443982,-571.53623594,0.00019178,2]
[357936196,1744601443993,-500.0,0.00019178,2]
[357936197,1744601444003,-500.0,0.00019178,2]
[357936198,1744601444014,-550.74280374,0.00019178,2]
[357936199,1744601444024,-503.45396222,0.00019178,2]
[357936200,1744601444033,-500.0,0.00019178,2]
[357936201,1744601444043,-500.0,0.00019178,2]
[357936202,1744601444053,-502.93348456,0.00019178,2]
[357936203,1744601444064,-510.53453136,0.00019178,2]
[357936204,1744601444074,-193.15042063,0.00019178,2]
[357936205,1744601444083,-500.0,0.00019178,2]
[357936206,1744601444093,-501.47095457,0.00019178,2]
[357936207,1744601444102,-509.32510321,0.00019178,2]
[357936208,1744601444112,-500.0,0.00019178,2]
[357936209,1744601444121,-500.0,0.00019178,2]
[357936210,1744601444135,-500.0,0.00019178,2]
[357936211,1744601444150,-529.94324716,0.00019178,2]
[357936212,1744601444159,-518.02967749,0.00019178,2]
[357936213,1744601444175,-500.98698982,0.00019178,2]
[357936214,1744601444184,-523.31338143,0.00019178,2]
[357936215,1744601444195,-500.0,0.00019178,2]
[357936216,1744601444205,-509.8305648,0.00019178,2]
[357936217,1744601444217,-545.75,0.00019178,2]
[357936218,1744601444227,-511.72278602,0.00019178,2]
[357936219,1744601444237,-339.69,0.00019178,2]
[357936220,1744601444247,-500.0,0.00019178,2]
[357936221,1744601444257,-519.6566463,0.00019178,2]
[357936222,1744601444268,-500.0,0.00019178,2]
[357936223,1744601444279,-500.0,0.00019178,2]
[357936224,1744601444288,-500.0,0.00019178,2]
[357936225,1744601444298,-570.51064157,0.00019178,2]
[357936226,1744601444311,-500.0,0.00019178,2]
[357936227,1744601444320,-502.38961995,0.00019178,2]
[357936228,1744601444330,-500.0,0.00019178,2]
[357936229,1744601444339,-500.0,0.00019178,2]
[357936230,1744601444348,-506.33306372,0.00019178,2]
[357936231,1744601444359,-538.9223238,0.00019178,2]
[357936232,1744601444368,-500.0,0.00019178,2]
[357936233,1744601444378,-500.0,0.00019178,2]
[357936234,1744601444387,-507.8672443,0.00019178,2]
[357936235,1744601444396,-604.95102541,0.00019178,2]
[357936236,1744601444404,-509.59273958,0.00019178,2]
[357936237,1744601444414,-510.78197885,0.00019178,2]
[357936238,1744601444423,-500.0,0.00019178,2]
[357936239,1744601444432,-500.0,0.00019178,2]
[357936240,1744601444442,-500.0,0.00019178,2]
[357936241,1744601444452,-500.0,0.00019178,2]
[357936242,1744601444461,-516.61771918,0.00019178,2]
[357936243,1744601444471,-500.0,0.00019178,2]
[357936244,1744601444481,-517.21616722,0.00019178,2]
[357936245,1744601444490,-500.0,0.00019178,2]
[357936246,1744601444501,-543.26347781,0.00019178,2]
[357936247,1744601444511,-501.46203465,0.00019178,2]
[357936248,1744601444521,-510.64942077,0.00019178,2]
[357936249,1744601444531,-502.01159203,0.00019178,2]
[357936250,1744601444542,-500.0,0.00019178,2]
[357936251,1744601444552,-500.0,0.00019178,2]
[357936252,1744601444561,-506.15435221,0.00019178,2]
[357936253,1744601444571,-623.54972887,0.00019178,2]
[357936254,1744601444580,-500.0,0.00019178,2]
[357936255,1744601444589,-500.0,0.00019178,2]
[357936256,1744601444599,-500.0,0.00019178,2]
[357936257,1744601444609,-500.0,0.00019178,2]
[357936258,1744601444618,-355.5829134,0.00019178,2]
[357936259,1744601444627,-500.0,0.00019178,2]
[357936260,1744601444636,-592.76663329,0.00019178,2]
[357936261,1744601444646,-500.0,0.00019178,2]
[357936262,1744601444655,-509.93216789,0.00019178,2]
[357936263,1744601444664,-150.0,0.00019178,2]
[357936264,1744601444674,-649.5730279,0.00019178,2]
[357936265,1744601444841,-500.0,0.00019178,2]
[357936266,1744601444852,-544.24402873,0.00019178,2]
[357936267,1744601444861,-614.6448582,0.00019178,2]
[357936268,1744601444871,-6970.71,0.00019178,2]
[357936269,1744601444881,-378.304225,0.00019178,2]
[357936270,1744601444891,-378.304225,0.00019178,2]
[357936271,1744601444901,-500.0,0.00019178,2]
[357936272,1744601444911,-500.0,0.00019178,2]
[357936273,1744601444920,-572.52736065,0.00019178,2]
[357936274,1744601444931,-500.0,0.00019178,2]
[357936275,1744601444940,-378.304225,0.00019178,2]
[357936276,1744601444950,-378.304225,0.00019178,2]
[357936277,1744601444960,-500.0,0.00019178,2]
[357936278,1744601444970,-643.6500145,0.00019178,2]
[357936279,1744601444980,-613.41831188,0.00019178,2]
[357936280,1744601444989,-584.74086044,0.00019178,2]
[357936281,1744601444999,-550.94657796,0.00019178,2]
[357936282,1744601445008,-556.90787896,0.00019178,2]
[357936283,1744601445018,-500.0,0.00019178,2]
[357936284,1744601445028,-154.30620524,0.00019178,2]
[357936285,1744601445038,-500.0,0.00019178,2]
[357936286,1744601445048,-500.0,0.00019178,2]
[357936287,1744601445058,-504.37614357,0.00019178,2]
[357936288,1744601445068,-545.04869149,0.00019178,2]
[357936289,1744601445077,-500.0,0.00019178,2]
[357936290,1744601445088,-504.58652844,0.00019178,2]
[357936291,1744601445097,-500.0,0.00019178,2]
[357936292,1744601445107,-505.07611106,0.00019178,2]
[357936293,1744601445116,-500.0,0.00019178,2]
[357936294,1744601445131,-500.0,0.00019178,2]
[357936295,1744601445141,-500.0,0.00019178,2]
[357936296,1744601445151,-1795.183534,0.00019178,2]
[357936297,1744601445161,-151.0,0.00019178,2]
[357936298,1744601445175,-1795.183534,0.00019178,2]
[357936299,1744601445184,-151.0,0.00019178,2]
[357936300,1744601445193,-500.0,0.00019178,2]
[357936301,1744601445203,-500.0,0.00019178,2]
[357936302,1744601445213,-1795.183534,0.00019178,2]
[357936303,1744601445223,-1795.183534,0.00019178,2]
[357936304,1744601445233,-500.0,0.00019178,2]
[357936305,1744601445244,-643.07712062,0.00019178,2]
[357936306,1744601445258,-500.0,0.00019178,2]
[357936307,1744601445267,-500.0,0.00019178,2]
[357936308,1744601445277,-515.22611937,0.00019178,2]
[357936309,1744601445287,-500.0,0.00019178,2]
[357936310,1744601445297,-523.68616532,0.00019178,2]
[357936311,1744601445309,-500.0,0.00019178,2]
[357936312,1744601445320,-440.40168611,0.00019178,2]
[357936313,1744601445330,-500.0,0.00019178,2]
[357936314,1744601445340,-500.0,0.00019178,2]
[357936315,1744601445350,-500.53256158,0.00019178,2]
[357936316,1744601445359,-535.04917166,0.00019178,2]
[357936317,1744601445369,-500.0,0.00019178,2]
[357936318,1744601445379,-588.21515634,0.00019178,2]
[357936319,1744601445389,-551.95920508,0.00019178,2]
[357936320,1744601445399,-151.0,0.00019178,2]
[357936321,1744601445410,-151.0,0.00019178,2]
[357936322,1744601445421,-151.0,0.00019178,2]
[357936323,1744601445432,-500.0,0.00019178,2]
[357936324,1744601445442,-503.45313047,0.00019178,2]
[357936325,1744601445452,-182.57510806,0.00019178,2]
[357936326,1744601445462,-517.61681257,0.00019178,2]
[357936327,1744601445472,-505.95509663,0.00019178,2]
[357936328,1744601445481,-500.0,0.00019178,2]
[357936329,1744601445491,-507.21326733,0.00019178,2]
[357936330,1744601445501,-500.0,0.00019178,2]
[357936331,1744601445510,-151.0,0.00019178,2]
[357936332,1744601445519,-509.24549091,0.00019178,2]
[357936333,1744601445528,-291.557035,0.00019178,2]
[357936334,1744601445537,-506.81160882,0.00019178,2]
[357936335,1744601445547,-500.0,0.00019178,2]
[357936336,1744601445556,-500.0,0.00019178,2]
[357936337,1744601445566,-511.06452904,0.00019178,2]
[357936338,1744601445576,-500.0,0.00019178,2]
[357936339,1744601445585,-500.0,0.00019178,2]
[357936340,1744601445595,-500.0,0.00019178,2]
[357936341,1744601445604,-500.0,0.00019178,2]
[357936342,1744601445613,-637.31,0.00019178,2]
[357936343,1744601445623,-500.0,0.00019178,2]
[357936344,1744601445633,-534.75988913,0.00019178,2]
[357936345,1744601445642,-286.12421358,0.00019178,2]
[357936346,1744601445652,-521.92753559,0.00019178,2]
[357936347,1744601445662,-338.46081013,0.00019178,2]
[357936348,1744601445672,-500.0,0.00019178,2]
[357936349,1744601445682,-500.0,0.00019178,2]
[357936350,1744601445693,-538.04561696,0.00019178,2]
[357936351,1744601445703,-512.89163324,0.00019178,2]
[357936352,1744601445713,-500.0,0.00019178,2]
[357936353,1744601445723,-685.42,0.00019178,2]
[357936354,1744601445733,-500.0,0.00019178,2]
[357936355,1744601445743,-512.41712269,0.00019178,2]
[357936356,1744601445752,-507.41830754,0.00019178,2]
[357936357,1744601445762,-500.0,0.00019178,2]
[357936358,1744601445771,-596.20761261,0.00019178,2]
[357936359,1744601445781,-500.0,0.00019178,2]
[357936360,1744601445791,-151.0,0.00019178,2]
[357936361,1744601445801,-500.0,0.00019178,2]
[357936362,1744601445811,-151.0,0.00019178,2]
[357936363,1744601445821,-151.0,0.00019178,2]
[357936364,1744601445831,-501.83505776,0.00019178,2]
[357936365,1744601445841,-500.0,0.00019178,2]
[357936366,1744601445851,-647.33425274,0.00019178,2]
[357936367,1744601445861,-443.48429622,0.00019178,2]
[357936368,1744601445871,-500.0,0.00019178,2]
[357936369,1744601445882,-506.05094994,0.00019178,2]
[357936370,1744601445892,-500.0,0.00019178,2]
[357936371,1744601445902,-500.0,0.00019178,2]
[357936372,1744601445911,-500.0,0.00019178,2]
[357936373,1744601445921,-508.67357697,0.00019178,2]
[357936374,1744601445931,-509.65878346,0.00019178,2]
[357936375,1744601445940,-514.7204286,0.00019178,2]
[357936376,1744601445950,-556.86580853,0.00019178,2]
[357936377,1744601445959,-536.35299338,0.00019178,2]
[357936378,1744601445969,-506.45788048,0.00019178,2]
[357936379,1744601445979,-502.23248882,0.00019178,2]
[357936380,1744601445988,-500.0,0.00019178,2]
[357936381,1744601445998,-500.0,0.00019178,2]
[357936382,1744601446007,-500.0,0.00019178,2]
[357936383,1744601446018,-512.4790636,0.00019178,2]
[357936384,1744601446027,-518.0266153,0.00019178,2]
[357936385,1744601446037,-501.08538848,0.00019178,2]
[357936386,1744601446046,-500.0,0.00019178,2]
[357936387,1744601446056,-503.59106847,0.00019178,2]
[357936388,1744601446065,-521.49458855,0.00019178,2]
[357936389,1744601446075,-500.0,0.00019178,2]
[357936390,1744601446085,-500.0,0.00019178,2]
[357936391,1744601446095,-518.39833755,0.00019178,2]
[357936392,1744601446104,-566.04,0.000192,2]
[357936393,1744601446115,-404.32384904,0.000192,2]
[357936394,1744601446125,-373.3621359,0.00019219,2]
[357936395,1744601446135,-500.0,0.00019233,2]
[357936396,1744601446145,-273.18835129,0.00019233,2]
[357936397,1744601446154,-500.0,0.00019288,2]
[357936398,1744601446164,-404.32384904,0.000193,2]
[357936399,1744601446177,-164.99,0.00019321,2]
[357936401,1744601446187,-500.0,0.00019342,2]
[357936403,1744601446197,-421.7916,0.00019352,2]
[357936405,1744601446207,-500.0,0.00019397,2]
[357936407,1744601446216,-276.4124941,0.00019399,2]
[357936409,1744601446226,-663.00851678,0.000194,2]
[357936411,1744601446236,-404.32384904,0.000194,2]
[357936413,1744601446245,-500.0,0.00019452,2]
[357936415,1744601446255,-500.0,0.00019452,2]
[357936417,1744601446265,-194.23,0.00019452,2]
[357936419,1744601446275,-160.36,0.00019452,2]
[357936421,1744601446285,-223.01,0.00019452,2]
[357936423,1744601446294,-307.78,0.00019452,2]
[357936425,1744601446303,-500.0,0.00019452,2]
[357936427,1744601446312,-599.00519801,0.00019452,2]
[357936429,1744601446322,-500.0,0.00019452,2]
[357936431,1744601446331,-220.16912532,0.00019452,2]
[357936433,1744601446340,-500.0,0.00019452,2]
[357936434,1744601446350,-500.0,0.00019452,2]
[357936436,1744601446359,-500.0,0.00019452,2]
[357936438,1744601446369,-500.0,0.00019452,2]
[357936440,1744601446378,-500.0,0.00019452,2]
[357936442,1744601446387,-500.0,0.00019452,2]
[357936444,1744601446397,-523.14913676,0.00019452,2]
[357936446,1744601446407,-500.0,0.00019452,2]
[357936448,1744601446416,-500.0,0.00019452,2]
[357936450,1744601446426,-500.0,0.00019452,2]
[357936452,1744601446435,-500.0,0.00019452,2]
[357936454,1744601446444,-500.0,0.00019452,2]
[357936456,1744601446454,-500.0,0.00019452,2]
[357936458,1744601446464,-315.98682398,0.00019452,2]
[357936460,1744601446474,-500.0,0.00019452,2]
[357936462,1744601446483,-198.46,0.00019452,2]
[357936464,1744601446492,-598.14,0.00019452,2]
[357936466,1744601446502,-500.0,0.00019452,2]
[357936468,1744601446511,-500.0,0.00019452,2]
[357936470,1744601446521,-500.0,0.00019452,2]
[357936472,1744601446531,-500.0,0.00019452,2]
[357936474,1744601446541,-531.63777853,0.00019452,2]
[357936476,1744601446551,-500.0,0.00019452,2]
[357936478,1744601446560,-500.0,0.00019452,2]
[357936480,1744601446570,-351.85956989,0.00019452,2]
[357936482,1744601446579,-249.94959971,0.00019452,2]
[357936484,1744601446589,-500.0,0.00019452,2]
[357936486,1744601446598,-500.0,0.00019452,2]
[357936489,1744601446611,-651.99,0.00019452,2]
[357936491,1744601446620,-500.0,0.00019452,2]
[357936493,1744601446632,-520.95569493,0.00019452,2]
[357936495,1744601446641,-500.0,0.00019452,2]
[357936497,1744601446650,-187.71763451,0.00019452,2]
[357936499,1744601446659,-994.27,0.00019452,2]
[357936501,1744601446669,-151.0,0.00019452,2]
[357936503,1744601446679,-252.45394082,0.00019452,2]
[357936505,1744601446688,-621.04747464,0.00019452,2]
[357936507,1744601446697,-500.0,0.00019452,2]
[357936509,1744601446707,-340.88770081,0.00019452,2]
[357936511,1744601446716,-164.51240688,0.00019452,2]
[357936513,1744601446725,-500.0,0.00019452,2]
[357936515,1744601446735,-500.0,0.00019452,2]
[357936517,1744601446745,-500.0,0.00019452,2]
[357936519,1744601446754,-613.49476184,0.00019452,2]
[357936520,1744601446763,-151.60778395,0.00019452,2]
[357936521,1744601446773,-500.0,0.00019452,2]
[357936522,1744601446783,-236.4122041,0.00019452,2]
[357936523,1744601446792,-364.66253916,0.00019452,2]
[357936524,1744601446802,-504.40273789,0.00019452,2]
[357936525,1744601446811,-500.0,0.00019452,2]
[357936526,1744601446821,-500.0,0.00019452,2]
[357936527,1744601446830,-512.21641759,0.00019452,2]
[357936528,1744601446839,-208.53227928,0.00019452,2]
[357936529,1744601446849,-500.0,0.00019452,2]
[357936530,1744601446859,-500.0,0.00019452,2]
[357936531,1744601446868,-500.0,0.00019452,2]
[357936532,1744601446878,-500.0,0.00019452,2]
[357936533,1744601446888,-500.0,0.00019452,2]
[357936534,1744601446897,-500.0,0.00019452,2]
[357936535,1744601446907,-500.0,0.00019452,2]
[357936536,1744601446916,-262.34,0.00019452,2]
[357936537,1744601446926,-500.0,0.00019452,2]
[357936538,1744601446935,-500.0,0.00019452,2]
[357936539,1744601446945,-500.0,0.00019452,2]
[357936540,1744601446955,-310.98765879,0.00019452,2]
[357936541,1744601446965,-416.88,0.00019452,2]
[357936542,1744601446975,-500.0,0.00019452,2]
[357936543,1744601446985,-500.0,0.00019452,2]
[357936544,1744601446994,-500.0,0.00019452,2]
[357936545,1744601447002,-500.0,0.00019452,2]
[357936546,1744601447011,-500.0,0.00019452,2]
[357936547,1744601447020,-500.0,0.00019452,2]
[357936548,1744601447029,-500.0,0.00019452,2]
[357936549,1744601447038,-202.58136482,0.00019452,2]
[357936550,1744601447047,-533.06420198,0.00019452,2]
[357936551,1744601447056,-500.0,0.00019452,2]
[357936552,1744601447066,-500.0,0.00019452,2]
[357936553,1744601447075,-231.15,0.00019452,2]
[357936554,1744601447085,-195.87664267,0.00019452,2]
[357936555,1744601447094,-500.0,0.00019452,2]
[357936556,1744601447104,-500.0,0.00019452,2]
[357936557,1744601447114,-500.0,0.00019452,2]
[357936558,1744601447130,-485.61,0.00019452,2]
[357936559,1744601447140,-500.0,0.00019452,2]
[357936560,1744601447149,-500.0,0.00019452,2]
[357936561,1744601447159,-500.0,0.00019452,2]
[357936562,1744601447169,-500.0,0.00019452,2]
[357936563,1744601447181,-6970.71,0.00019452,2]
[357936564,1744601447190,-378.304225,0.00019452,2]
[357936565,1744601447199,-388.53496153,0.00019452,2]
[357936566,1744601447209,-378.304225,0.00019452,2]
[357936567,1744601447219,-611.47197563,0.00019452,2]
[357936568,1744601447228,-500.0,0.00019452,2]
[357936569,1744601447237,-500.0,0.00019452,2]
[357936570,1744601447247,-500.0,0.00019452,2]
[357936571,1744601447257,-403.85898097,0.00019452,2]
[357936572,1744601447267,-500.0,0.00019452,2]
[357936573,1744601447276,-500.0,0.00019452,2]
[357936574,1744601447286,-500.0,0.00019452,2]
[357936575,1744601447295,-1795.183534,0.00019452,2]
[357936576,1744601447305,-151.0,0.00019452,2]
[357936577,1744601447315,-500.0,0.00019452,2]
[357936578,1744601447324,-520.31569667,0.00019452,2]
[357936579,1744601447335,-1795.183534,0.00019452,2]
[357936580,1744601447344,-500.0,0.00019452,2]
[357936581,1744601447354,-288.7286956,0.00019452,2]
[357936582,1744601447364,-500.0,0.00019452,2]
[357936583,1744601447373,-500.0,0.00019452,2]
[357936584,1744601447383,-500.0,0.00019452,2]
[357936585,1744601447393,-501.89642457,0.00019452,2]
[357936586,1744601447403,-500.0,0.00019452,2]
[357936587,1744601447412,-500.0,0.00019452,2]
[357936588,1744601447422,-500.0,0.00019452,2]
[357936589,1744601447431,-500.0,0.00019452,2]
[357936590,1744601447442,-500.0,0.00019452,2]
[357936591,1744601447451,-597.9328826,0.00019452,2]
[357936592,1744601447461,-500.0,0.00019452,2]
[357936593,1744601447470,-500.0,0.00019452,2]
[357936594,1744601447480,-194.52300246,0.00019452,2]
[357936595,1744601447489,-500.0,0.00019452,2]
[357936596,1744601447500,-637.31,0.00019452,2]
[357936597,1744601447510,-500.0,0.00019452,2]
[357936598,1744601447519,-500.0,0.00019452,2]
[357936599,1744601447528,-500.0,0.00019452,2]
[357936600,1744601447538,-685.42,0.00019452,2]
[357936601,1744601447547,-500.0,0.00019452,2]
[357936602,1744601447557,-500.0,0.00019452,2]
[357936603,1744601447568,-500.0,0.00019452,2]
[357936604,1744601447578,-500.0,0.00019452,2]
[357936605,1744601447588,-500.0,0.00019452,2]
[357936606,1744601447597,-550.97150598,0.00019452,2]
[357936607,1744601447606,-579.91,0.00019474,2]
[357936608,1744601447616,-373.3621359,0.00019495,2]
[357936609,1744601447625,-404.32384904,0.000195,2]
[357936610,1744601447635,-416.00464962,0.00019507,2]
[357936611,1744601447645,-404.32384904,0.000196,2]
[357936612,1744601447655,-151.0,0.00019685,2]
[357936613,1744601447664,-155.65273,0.00019685,2]
[357936614,1744601447673,-151.0,0.00019685,2]
[357936615,1744601447683,-270.318796,0.00019685,2]
[357936616,1744601447693,-270.318796,0.00019685,2]
[357936617,1744601447702,-151.0,0.00019685,2]
[357936618,1744601447712,-151.0,0.00019685,2]
[357936619,1744601447721,-151.0,0.00019685,2]
[357936620,1744601447731,-151.0,0.00019685,2]
[357936621,1744601447740,-156.011252,0.00019685,2]
[357936622,1744601447750,-151.0,0.00019685,2]
[357936623,1744601447760,-10689.47500748,0.00019686,2]
[357936624,1744601448117,-17555.0073154,0.00019686,2]
[357936625,1744601448126,-42718.62593251,0.00019688,2]
[357936626,1744601448136,-190.729831,0.00019688,2]
[357936627,1744601448145,-190.729831,0.00019688,2]
[357936628,1744601448156,-153.28917,0.00019688,2]
[357936629,1744601448166,-378.304225,0.00019688,2]
[357936630,1744601448180,-378.304225,0.00019688,2]
[357936631,1744601448191,-1795.183534,0.00019688,2]
[357936632,1744601448202,-151.0,0.00019688,2]
[357936633,1744601448213,-1795.183534,0.00019688,2]
[357936634,1744601448225,-1294.3597,0.00019699,2]
[357936635,1744601448236,-404.32384904,0.000197,2]
[357936636,1744601448247,-2319.64,0.000197,2]
[357936637,1744601448259,-744.54731115,0.00019702,2]
[357936638,1744601448270,-744.54731115,0.00019704,2]
[357936639,1744601448281,-781.57665068,0.00019707,2]
[357936640,1744601448292,-420.0,0.00019725,2]
[357936641,1744601448303,-500.0,0.00019726,2]
[357936642,1744601448314,-368.84,0.00019726,2]
[357936643,1744601448324,-542.35,0.00019726,2]
[357936644,1744601448336,-536.35015639,0.00019726,2]
[357936645,1744601448346,-615.56209662,0.00019726,2]
[357936646,1744601448357,-500.0,0.00019726,2]
[357936647,1744601448368,-500.0,0.00019726,2]
[357936648,1744601448379,-500.0,0.00019726,2]
[357936649,1744601448389,-500.0,0.00019726,2]
[357936650,1744601448399,-500.0,0.00019726,2]
[357936651,1744601448409,-500.0,0.00019726,2]
[357936652,1744601448418,-500.0,0.00019726,2]
[357936653,1744601448428,-517.48353604,0.00019726,2]
[357936654,1744601448438,-314.78781203,0.00019726,2]
[357936655,1744601448448,-500.0,0.00019726,2]
[357936656,1744601448458,-223.93035433,0.00019726,2]
[357936657,1744601448469,-500.0,0.00019726,2]
[357936658,1744601448479,-500.0,0.00019726,2]
[357936659,1744601448488,-574.5457391,0.00019726,2]
[357936660,1744601448498,-358.55,0.00019726,2]
[357936661,1744601448508,-280.32163382,0.00019726,2]
[357936662,1744601448518,-293.87825309,0.00019726,2]
[357936663,1744601448527,-195.14679005,0.00019726,2]
[357936664,1744601448537,-500.0,0.00019726,2]
[357936665,1744601448547,-651.99,0.00019726,2]
[357936666,1744601448557,-254.19824912,0.00019726,2]
[357936667,1744601448567,-514.70733894,0.00019726,2]
[357936668,1744601448578,-994.27,0.00019726,2]
[357936669,1744601448587,-500.0,0.00019726,2]
[357936670,1744601448597,-524.85605284,0.00019726,2]
[357936671,1744601448607,-500.0,0.00019726,2]
[357936672,1744601448617,-178.15928851,0.00019726,2]
[357936673,1744601448627,-406.58251424,0.00019726,2]
[357936674,1744601448636,-233.33927667,0.00019726,2]
[357936675,1744601448646,-176.56,0.00019726,2]
[357936676,1744601448656,-500.0,0.00019726,2]
[357936677,1744601448666,-500.0,0.00019726,2]
[357936678,1744601448675,-500.0,0.00019726,2]
[357936679,1744601448686,-483.28,0.00019726,2]
[357936680,1744601448695,-500.0,0.00019726,2]